[Event "Paul Keres Memorial Festival 2022"]
[Site "Pärnu, Estonia Resort Hotel & Spa"]
[Date "2022.07.20"]
[Round "4.6"]
[White "Raag, Ardi"]
[Black "Paikens, Reinis"]
[Result "1-0"]
[TimeControl "60 min for 30 moves + 30 min until game end, from first move every move 30 sec time increment"]
[WhiteFideId "4509269"]
[BlackFideId "11624078"]
[WhiteElo "1971"]
[BlackElo "1567"]

1. e4 {[%clk 01:00:59]} {[%emt 00:00:01]} d5 {[%clk 01:00:52]} {[%emt
00:00:08]} 2. exd5 {[%clk 01:01:26]} {[%emt 00:00:03]} Nf6 {[%clk 01:01:11]}
{[%emt 00:00:11]} 3. d4 {[%clk 01:01:52]} {[%emt 00:00:04]} Bg4 {[%clk
01:01:32]} {[%emt 00:00:09]} 4. Be2 {[%clk 01:01:36]} {[%emt 00:00:45]} Bxe2
{[%clk 01:01:30]} {[%emt 00:00:33]} 5. Qxe2 {[%clk 01:01:57]} {[%emt 00:00:09]}
Qxd5 {[%clk 01:01:40]} {[%emt 00:00:19]} 6. Nf3 {[%clk 01:02:17]} {[%emt
00:00:11]} Nc6 {[%clk 01:01:48]} {[%emt 00:00:22]} 7. O-O {[%clk 00:59:55]}
{[%emt 00:02:52]} O-O-O {[%clk 01:01:39]} {[%emt 00:00:39]} 8. c3 {[%clk
00:59:32]} {[%emt 00:00:53]} e6 {[%clk 01:01:07]} {[%emt 00:01:02]} 9. b4
{[%clk 00:58:22]} {[%emt 00:01:41]} Bd6 {[%clk 01:00:29]} {[%emt 00:01:07]} 10.
b5 {[%clk 00:55:23]} {[%emt 00:03:30]} Na5 {[%clk 00:56:34]} {[%emt 00:04:25]}
11. Nbd2 {[%clk 00:55:27]} {[%emt 00:00:26]} c6 {[%clk 00:55:21]} {[%emt
00:01:43]} 12. c4 {[%clk 00:48:42]} {[%emt 00:07:15]} Qh5 {[%clk 00:55:27]}
{[%emt 00:00:23]} 13. Re1 {[%clk 00:49:06]} {[%emt 00:00:06]} Bc7 {[%clk
00:51:07]} {[%emt 00:04:51]} 14. Rb1 {[%clk 00:41:02]} {[%emt 00:08:34]} g5
{[%clk 00:44:45]} {[%emt 00:06:51]} 15. Ne4 {[%clk 00:27:47]} {[%emt 00:13:45]}
Nxe4 {[%clk 00:36:32]} {[%emt 00:08:42]} 16. Qxe4 {[%clk 00:28:12]} {[%emt
00:00:05]} Nxc4 {[%clk 00:28:21]} {[%emt 00:08:40]} 17. bxc6 {[%clk 00:28:30]}
{[%emt 00:00:13]} g4 {[%clk 00:26:02]} {[%emt 00:02:49]} 18. Ne5 {[%clk
00:24:15]} {[%emt 00:04:45]} Nxe5 {[%clk 00:14:50]} {[%emt 00:11:42]} 19. dxe5
{[%clk 00:23:50]} {[%emt 00:00:55]} Rd5 {[%clk 00:09:21]} {[%emt 00:05:58]} 20.
Rxb7 {[%clk 00:22:08]} {[%emt 00:02:12]} Bb6 {[%clk 00:09:01]} {[%emt
00:00:50]} 21. Qe2 {[%clk 00:20:04]} {[%emt 00:02:33]} Ra5 {[%clk 00:04:42]}
{[%emt 00:04:50]} 22. Bd2 {[%clk 00:07:47]} {[%emt 00:12:47]} Rxa2 {[%clk
00:03:54]} {[%emt 00:01:18]} 23. Qd3 {[%clk 00:08:11]} {[%emt 00:00:06]} Rd8
{[%clk 00:03:27]} {[%emt 00:00:56]} 24. Rd7 {[%clk 00:08:36]} {[%emt 00:00:05]}
Qh4 {[%clk 00:02:57]} {[%emt 00:01:00]} 25. g3 {[%clk 00:08:44]} {[%emt
00:00:21]} Qe7 {[%clk 00:03:10]} {[%emt 00:00:17]} 26. Qb1 {[%clk 00:05:05]}
{[%emt 00:04:10]} Qa3 {[%clk 00:00:32]} {[%emt 00:03:09]} 27. Be3 {[%clk
00:03:44]} {[%emt 00:01:50]} Rxd7 {[%clk 00:00:32]} {[%emt 00:00:30]} 28. cxd7+
{[%clk 00:04:02]} {[%emt 00:00:13]} Kxd7 {[%clk 00:00:58]} {[%emt 00:00:04]} 29.
Bxb6 {[%clk 00:04:08]} {[%emt 00:00:23]} axb6 {[%clk 00:01:09]} {[%emt
00:00:20]} 30. Qxb6 {[%clk 00:34:10]} {[%emt 00:00:28]} Qd3 {[%clk 00:30:32]}
{[%emt 00:01:07]} 31. Rc1 {[%clk 00:30:13]} {[%emt 00:04:27]} Rc2 {[%clk
00:21:58]} {[%emt 00:09:03]} 32. Qb7+ {[%clk 00:30:30]} {[%emt 00:00:13]} Kd8
{[%clk 00:15:50]} {[%emt 00:06:38]} 33. Ra1 {[%clk 00:30:55]} {[%emt 00:00:06]}
Rc7 {[%clk 00:15:13]} {[%emt 00:01:07]} 34. Qb4 {[%clk 00:30:53]} {[%emt
00:00:32]} Qf3 {[%clk 00:08:46]} {[%emt 00:06:57]} 35. Qf8+ {[%clk 00:23:04]}
{[%emt 00:08:18]} Kd7 {[%clk 00:08:46]} {[%emt 00:00:30]} 36. Qd6+ {[%clk
00:23:29]} {[%emt 00:00:05]} Kc8 {[%clk 00:08:55]} {[%emt 00:00:21]} 37. Rb1
{[%clk 00:23:46]} {[%emt 00:00:13]} Qd5 {[%clk 00:06:32]} {[%emt 00:02:53]} 38.
Qf8+ {[%clk 00:23:57]} {[%emt 00:00:19]} Kd7 {[%clk 00:06:08]} {[%emt
00:00:53]} 39. Qxf7+ {[%clk 00:24:18]} {[%emt 00:00:10]} Kc8 {[%clk 00:05:23]}
{[%emt 00:01:14]} 40. Qe8+ {[%clk 00:24:32]} {[%emt 00:00:15]} Qd8 {[%clk
00:05:37]} {[%emt 00:00:17]} 41. Rb8+ {[%clk 00:24:56]} {[%emt 00:00:06]} 1-0

[Event "Paul Keres Memorial Festival 2022"]
[Site "Pärnu, Estonia Resort Hotel & Spa"]
[Date "2022.07.20"]
[Round "4.7"]
[White "Rondo, Mikko"]
[Black "Olde, Grete"]
[Result "1-0"]
[TimeControl "60 min for 30 moves + 30 min until game end, from first move every move 30 sec time increment"]
[BlackTitle "WCM"]
[WhiteFideId "4509633"]
[BlackFideId "4503104"]
[WhiteElo "1579"]
[BlackElo "1904"]

1. c3 {[%clk 01:00:22]} {[%emt 00:00:37]} d5 {[%clk 00:59:10]} {[%emt
00:01:50]} 2. d4 {[%clk 01:00:44]} {[%emt 00:00:09]} Nf6 {[%clk 00:59:17]}
{[%emt 00:00:23]} 3. g3 {[%clk 01:00:08]} {[%emt 00:01:06]} e6 {[%clk
00:59:08]} {[%emt 00:00:38]} 4. Bg2 {[%clk 01:00:24]} {[%emt 00:00:15]} Be7
{[%clk 00:59:02]} {[%emt 00:00:36]} 5. Nf3 {[%clk 00:59:34]} {[%emt 00:01:20]}
O-O {[%clk 00:58:37]} {[%emt 00:00:55]} 6. O-O {[%clk 00:59:34]} {[%emt
00:00:30]} b6 {[%clk 00:57:18]} {[%emt 00:01:49]} 7. Ne5 {[%clk 00:59:15]}
{[%emt 00:00:49]} Bb7 {[%clk 00:56:33]} {[%emt 00:01:15]} 8. Bg5 {[%clk
00:57:24]} {[%emt 00:02:21]} c5 {[%clk 00:51:39]} {[%emt 00:05:25]} 9. Nd2
{[%clk 00:57:18]} {[%emt 00:00:36]} Nc6 {[%clk 00:48:03]} {[%emt 00:04:06]} 10.
Nxc6 {[%clk 00:52:51]} {[%emt 00:04:57]} Bxc6 {[%clk 00:47:45]} {[%emt
00:00:48]} 11. Re1 {[%clk 00:52:07]} {[%emt 00:01:14]} cxd4 {[%clk 00:37:26]}
{[%emt 00:10:49]} 12. cxd4 {[%clk 00:52:16]} {[%emt 00:00:21]} Rc8 {[%clk
00:37:32]} {[%emt 00:00:23]} 13. a3 {[%clk 00:47:15]} {[%emt 00:05:32]} Ne4
{[%clk 00:32:51]} {[%emt 00:05:10]} 14. Bxe7 {[%clk 00:47:14]} {[%emt
00:00:31]} Qxe7 {[%clk 00:33:11]} {[%emt 00:00:09]} 15. Nxe4 {[%clk 00:44:56]}
{[%emt 00:02:49]} dxe4 {[%clk 00:33:30]} {[%emt 00:00:08]} 16. e3 {[%clk
00:41:26]} {[%emt 00:04:03]} Rfd8 {[%clk 00:32:16]} {[%emt 00:01:43]} 17. Qg4
{[%clk 00:38:51]} {[%emt 00:03:06]} f5 {[%clk 00:31:06]} {[%emt 00:01:40]} 18.
Qe2 {[%clk 00:39:11]} {[%emt 00:00:10]} e5 {[%clk 00:26:07]} {[%emt 00:05:29]}
19. dxe5 {[%clk 00:38:45]} {[%emt 00:00:56]} Qxe5 {[%clk 00:26:26]} {[%emt
00:00:10]} 20. Red1 {[%clk 00:35:45]} {[%emt 00:03:30]} Bb5 {[%clk 00:21:29]}
{[%emt 00:05:27]} 21. Rxd8+ {[%clk 00:34:59]} {[%emt 00:01:17]} Rxd8 {[%clk
00:21:53]} {[%emt 00:00:07]} 22. Qc2 {[%clk 00:35:11]} {[%emt 00:00:18]} Qd5
{[%clk 00:16:33]} {[%emt 00:05:49]} 23. Bf1 {[%clk 00:30:46]} {[%emt 00:04:55]}
Bxf1 {[%clk 00:14:23]} {[%emt 00:02:40]} 24. Rxf1 {[%clk 00:31:01]} {[%emt
00:00:15]} g5 {[%clk 00:12:27]} {[%emt 00:02:25]} 25. Qc3 {[%clk 00:30:34]}
{[%emt 00:00:57]} Kf7 {[%clk 00:08:18]} {[%emt 00:04:38]} 26. Rc1 {[%clk
00:30:14]} {[%emt 00:00:50]} Rd7 {[%clk 00:05:08]} {[%emt 00:03:41]} 27. h3
{[%clk 00:28:30]} {[%emt 00:02:14]} Qe6 {[%clk 00:04:13]} {[%emt 00:01:25]} 28.
Kg2 {[%clk 00:27:30]} {[%emt 00:01:29]} Qd5 {[%clk 00:02:27]} {[%emt 00:02:16]}
29. Kg1 {[%clk 00:24:55]} {[%emt 00:03:05]} Qd6 {[%clk 00:01:25]} {[%emt
00:01:32]} 30. Qh8 {[%clk 00:51:43]} {[%emt 00:03:42]} Kg6 {[%clk 00:30:43]}
{[%emt 00:01:11]} 31. Qe8+ {[%clk 00:51:37]} {[%emt 00:00:37]} Kg7 {[%clk
00:26:37]} {[%emt 00:04:35]} 32. Kg2 {[%clk 00:47:35]} {[%emt 00:04:32]} Re7
{[%clk 00:20:57]} {[%emt 00:06:10]} 33. Qb5 {[%clk 00:46:12]} {[%emt 00:01:54]}
Re5 {[%clk 00:14:35]} {[%emt 00:06:53]} 34. Qa4 {[%clk 00:46:04]} {[%emt
00:00:37]} f4 {[%clk 00:12:46]} {[%emt 00:02:19]} 35. gxf4 {[%clk 00:29:33]}
{[%emt 00:17:02]} gxf4 {[%clk 00:12:40]} {[%emt 00:00:36]} 36. exf4 {[%clk
00:29:59]} {[%emt 00:00:04]} Re7 {[%clk 00:10:02]} {[%emt 00:03:07]} 37. Rc3
{[%clk 00:17:52]} {[%emt 00:12:37]} Qxf4 {[%clk 00:04:17]} {[%emt 00:06:14]} 38.
Qd4+ {[%clk 00:17:54]} {[%emt 00:00:29]} Qf6 {[%clk 00:03:56]} {[%emt
00:00:51]} 39. Rg3+ {[%clk 00:17:28]} {[%emt 00:00:56]} Kf7 {[%clk 00:04:22]}
{[%emt 00:00:04]} 40. Qd8 {[%clk 00:15:40]} {[%emt 00:02:19]} Re5 {[%clk
00:02:33]} {[%emt 00:02:17]} 41. Qg8+ {[%clk 00:15:42]} {[%emt 00:00:28]} Ke7
{[%clk 00:02:57]} {[%emt 00:00:07]} 42. Qxh7+ {[%clk 00:15:44]} {[%emt
00:00:28]} Kd6 {[%clk 00:02:56]} {[%emt 00:00:31]} 43. Qxa7 {[%clk 00:15:51]}
{[%emt 00:00:23]} Kc5 {[%clk 00:01:28]} {[%emt 00:01:57]} 44. Qc7+ {[%clk
00:14:57]} {[%emt 00:01:25]} Kd4 {[%clk 00:01:14]} {[%emt 00:00:44]} 45. b3
{[%clk 00:14:21]} {[%emt 00:01:06]} Kd5 {[%clk 00:01:21]} {[%emt 00:00:23]} 46.
Qd7+ {[%clk 00:14:37]} {[%emt 00:00:14]} Qd6 {[%clk 00:01:24]} {[%emt
00:00:27]} 47. Qxd6+ {[%clk 00:13:49]} {[%emt 00:01:19]} Kxd6 {[%clk 00:01:50]}
{[%emt 00:00:04]} 48. h4 {[%clk 00:14:14]} {[%emt 00:00:05]} Rd5 {[%clk
00:01:07]} {[%emt 00:01:13]} 49. Rg6+ {[%clk 00:14:16]} {[%emt 00:00:28]} Kc7
{[%clk 00:01:21]} {[%emt 00:00:17]} 50. Rg4 {[%clk 00:14:26]} {[%emt 00:00:19]}
Re5 {[%clk 00:01:33]} {[%emt 00:00:18]} 51. Rg5 {[%clk 00:14:32]} {[%emt
00:00:24]} Re6 {[%clk 00:01:24]} {[%emt 00:00:39]} 52. h5 {[%clk 00:14:54]}
{[%emt 00:00:08]} e3 {[%clk 00:01:15]} {[%emt 00:00:39]} 53. fxe3 {[%clk
00:15:12]} {[%emt 00:00:11]} Rxe3 {[%clk 00:01:43]} {[%emt 00:00:03]} 54. h6
{[%clk 00:15:33]} {[%emt 00:00:09]} Re6 {[%clk 00:01:32]} {[%emt 00:00:40]} 55.
Rh5 {[%clk 00:15:57]} {[%emt 00:00:06]} 1-0

[Event "Paul Keres Memorial Festival 2022"]
[Site "Pärnu, Estonia Resort Hotel & Spa"]
[Date "2022.07.20"]
[Round "4.8"]
[White "Olde, Karl Erik"]
[Black "Sepandi, Jaak"]
[Result "1-0"]
[TimeControl "60 min for 30 moves + 30 min until game end, from first move every move 30 sec time increment"]
[WhiteFideId "4505760"]
[BlackFideId "4504348"]
[WhiteElo "1842"]
[BlackElo "1507"]

1. d4 {[%clk 00:58:39]} {[%emt 00:02:20]} e6 {[%clk 01:00:48]} {[%emt
00:00:12]} 2. c4 {[%clk 00:58:25]} {[%emt 00:00:44]} Bb4+ {[%clk 01:01:08]}
{[%emt 00:00:10]} 3. Bd2 {[%clk 00:58:09]} {[%emt 00:00:47]} Bxd2+ {[%clk
01:01:24]} {[%emt 00:00:14]} 4. Nxd2 {[%clk 00:58:32]} {[%emt 00:00:08]} d5
{[%clk 01:00:20]} {[%emt 00:01:33]} 5. Ngf3 {[%clk 00:56:54]} {[%emt 00:02:08]}
Nf6 {[%clk 00:59:53]} {[%emt 00:00:58]} 6. Qc2 {[%clk 00:55:13]} {[%emt
00:02:10]} Nc6 {[%clk 00:58:20]} {[%emt 00:02:04]} 7. Rd1 {[%clk 00:53:27]}
{[%emt 00:02:16]} Bd7 {[%clk 00:55:25]} {[%emt 00:03:25]} 8. a3 {[%clk
00:51:15]} {[%emt 00:02:42]} a5 {[%clk 00:53:59]} {[%emt 00:01:56]} 9. g3
{[%clk 00:50:53]} {[%emt 00:00:52]} O-O {[%clk 00:53:10]} {[%emt 00:01:19]} 10.
Bg2 {[%clk 00:51:05]} {[%emt 00:00:18]} Ne7 {[%clk 00:51:46]} {[%emt 00:01:54]}
11. Ne5 {[%clk 00:49:24]} {[%emt 00:02:11]} c6 {[%clk 00:49:33]} {[%emt
00:02:43]} 12. O-O {[%clk 00:45:07]} {[%emt 00:04:46]} Rc8 {[%clk 00:48:06]}
{[%emt 00:01:57]} 13. c5 {[%clk 00:44:01]} {[%emt 00:01:36]} Ne8 {[%clk
00:46:29]} {[%emt 00:02:06]} 14. b4 {[%clk 00:42:17]} {[%emt 00:02:14]} axb4
{[%clk 00:43:03]} {[%emt 00:03:57]} 15. axb4 {[%clk 00:41:32]} {[%emt
00:01:15]} f6 {[%clk 00:42:02]} {[%emt 00:01:31]} 16. Nd3 {[%clk 00:41:17]}
{[%emt 00:00:46]} Nc7 {[%clk 00:41:28]} {[%emt 00:01:04]} 17. Ra1 {[%clk
00:38:47]} {[%emt 00:02:59]} Ra8 {[%clk 00:41:15]} {[%emt 00:00:44]} 18. Nb3
{[%clk 00:38:06]} {[%emt 00:01:11]} Nb5 {[%clk 00:40:45]} {[%emt 00:00:59]} 19.
Rxa8 {[%clk 00:35:22]} {[%emt 00:03:14]} Qxa8 {[%clk 00:41:02]} {[%emt
00:00:13]} 20. Ra1 {[%clk 00:35:09]} {[%emt 00:00:43]} Qb8 {[%clk 00:40:12]}
{[%emt 00:01:21]} 21. Bh3 {[%clk 00:33:40]} {[%emt 00:01:58]} Qc7 {[%clk
00:40:00]} {[%emt 00:00:42]} 22. e3 {[%clk 00:31:21]} {[%emt 00:02:49]} Ng6
{[%clk 00:39:30]} {[%emt 00:01:00]} 23. Nf4 {[%clk 00:28:39]} {[%emt 00:03:12]}
Nxf4 {[%clk 00:37:31]} {[%emt 00:02:29]} 24. exf4 {[%clk 00:29:03]} {[%emt
00:00:06]} Re8 {[%clk 00:37:21]} {[%emt 00:00:40]} 25. Qb2 {[%clk 00:26:17]}
{[%emt 00:03:16]} Qb8 {[%clk 00:30:04]} {[%emt 00:07:47]} 26. Nc1 {[%clk
00:23:35]} {[%emt 00:03:12]} Re7 {[%clk 00:29:46]} {[%emt 00:00:49]} 27. Ra2
{[%clk 00:22:54]} {[%emt 00:01:11]} Be8 {[%clk 00:29:35]} {[%emt 00:00:41]} 28.
Qa1 {[%clk 00:22:54]} {[%emt 00:00:30]} Nc7 {[%clk 00:29:55]} {[%emt 00:00:10]}
29. Nd3 {[%clk 00:23:01]} {[%emt 00:00:23]} Bg6 {[%clk 00:30:01]} {[%emt
00:00:24]} 30. Nb2 {[%clk 00:53:19]} {[%emt 00:00:11]} Kf7 {[%clk 00:55:28]}
{[%emt 00:05:02]} 31. Na4 {[%clk 00:48:29]} {[%emt 00:05:21]} Bd3 {[%clk
00:55:12]} {[%emt 00:00:46]} 32. Bf1 {[%clk 00:45:16]} {[%emt 00:03:43]} Bxf1
{[%clk 00:54:14]} {[%emt 00:01:28]} 33. Kxf1 {[%clk 00:45:03]} {[%emt
00:00:43]} Re8 {[%clk 00:47:11]} {[%emt 00:07:33]} 34. Nc3 {[%clk 00:42:51]}
{[%emt 00:02:42]} e5 {[%clk 00:46:16]} {[%emt 00:01:25]} 35. fxe5 {[%clk
00:35:01]} {[%emt 00:08:20]} fxe5 {[%clk 00:45:31]} {[%emt 00:01:14]} 36. Rd2
{[%clk 00:33:19]} {[%emt 00:02:12]} e4 {[%clk 00:43:30]} {[%emt 00:02:31]} 37.
Qb1 {[%clk 00:32:04]} {[%emt 00:01:44]} Qc8 {[%clk 00:43:26]} {[%emt 00:00:34]}
38. b5 {[%clk 00:32:00]} {[%emt 00:00:34]} Re7 {[%clk 00:39:45]} {[%emt
00:04:11]} 39. bxc6 {[%clk 00:29:19]} {[%emt 00:03:11]} bxc6 {[%clk 00:40:04]}
{[%emt 00:00:10]} 40. Kg1 {[%clk 00:27:15]} {[%emt 00:02:34]} Ne6 {[%clk
00:39:39]} {[%emt 00:00:55]} 41. h4 {[%clk 00:24:09]} {[%emt 00:03:36]} Rb7
{[%clk 00:37:42]} {[%emt 00:02:28]} 42. Qd1 {[%clk 00:23:22]} {[%emt 00:01:17]}
g6 {[%clk 00:34:38]} {[%emt 00:03:34]} 43. Na4 {[%clk 00:21:05]} {[%emt
00:02:47]} Rb4 {[%clk 00:32:23]} {[%emt 00:02:44]} 44. Nb6 {[%clk 00:19:42]}
{[%emt 00:01:53]} Qa6 {[%clk 00:31:47]} {[%emt 00:01:06]} 45. Nd7 {[%clk
00:19:13]} {[%emt 00:00:59]} Kg7 {[%clk 00:30:16]} {[%emt 00:02:00]} 46. Ne5
{[%clk 00:18:39]} {[%emt 00:01:05]} Qb7 {[%clk 00:29:32]} {[%emt 00:01:14]} 47.
Kg2 {[%clk 00:18:02]} {[%emt 00:01:06]} Qb5 {[%clk 00:27:03]} {[%emt 00:02:59]}
48. Qg4 {[%clk 00:15:39]} {[%emt 00:02:52]} Nxd4 {[%clk 00:15:29]} {[%emt
00:12:05]} 49. Qd7+ {[%clk 00:14:34]} {[%emt 00:01:36]} Kg8 {[%clk 00:13:01]}
{[%emt 00:02:58]} 50. Qf7+ {[%clk 00:14:34]} {[%emt 00:00:29]} 1-0

[Event "Paul Keres Memorial Festival 2022"]
[Site "Pärnu, Estonia Resort Hotel & Spa"]
[Date "2022.07.20"]
[Round "5.1"]
[White "Kantans, Toms"]
[Black "Maiorov, Nikita"]
[Result "1-0"]
[TimeControl "60 min for 30 moves + 30 min until game end, from first move every move 30 sec time increment"]
[WhiteTitle "GM"]
[BlackTitle "GM"]
[WhiteFideId "11602945"]
[BlackFideId "13501720"]
[WhiteElo "2486"]
[BlackElo "2474"]

1. e4 {[%clk 01:00:56]} {[%emt 00:00:02]} e5 {[%clk 00:58:27]} {[%emt
00:01:20]} 2. Nf3 {[%clk 01:01:17]} {[%emt 00:00:09]} Nc6 {[%clk 00:58:52]}
{[%emt 00:00:05]} 3. d4 {[%clk 01:01:37]} {[%emt 00:00:10]} exd4 {[%clk
00:59:12]} {[%emt 00:00:10]} 4. Nxd4 {[%clk 01:02:01]} {[%emt 00:00:06]} Nf6
{[%clk 00:54:41]} {[%emt 00:05:02]} 5. Nxc6 {[%clk 01:01:55]} {[%emt 00:00:36]}
bxc6 {[%clk 00:55:07]} {[%emt 00:00:03]} 6. e5 {[%clk 01:02:06]} {[%emt
00:00:19]} Qe7 {[%clk 00:55:32]} {[%emt 00:00:05]} 7. Qe2 {[%clk 01:02:32]}
{[%emt 00:00:04]} Nd5 {[%clk 00:55:58]} {[%emt 00:00:04]} 8. h4 {[%clk
01:00:05]} {[%emt 00:02:57]} Qe6 {[%clk 00:49:32]} {[%emt 00:06:56]} 9. g3
{[%clk 00:57:23]} {[%emt 00:03:12]} d6 {[%clk 00:46:26]} {[%emt 00:03:36]} 10.
c4 {[%clk 00:52:23]} {[%emt 00:05:30]} Nb6 {[%clk 00:46:46]} {[%emt 00:00:10]}
11. Bf4 {[%clk 00:52:22]} {[%emt 00:00:30]} dxe5 {[%clk 00:37:56]} {[%emt
00:09:21]} 12. Qxe5 {[%clk 00:50:12]} {[%emt 00:02:40]} Bd6 {[%clk 00:36:13]}
{[%emt 00:02:13]} 13. Qxe6+ {[%clk 00:50:25]} {[%emt 00:00:17]} Bxe6 {[%clk
00:36:40]} {[%emt 00:00:03]} 14. Bxd6 {[%clk 00:49:29]} {[%emt 00:01:26]} cxd6
{[%clk 00:35:15]} {[%emt 00:01:54]} 15. Nd2 {[%clk 00:49:55]} {[%emt 00:00:04]}
d5 {[%clk 00:34:11]} {[%emt 00:01:35]} 16. Bg2 {[%clk 00:47:03]} {[%emt
00:03:21]} O-O {[%clk 00:34:23]} {[%emt 00:00:18]} 17. cxd5 {[%clk 00:47:10]}
{[%emt 00:00:23]} cxd5 {[%clk 00:33:26]} {[%emt 00:01:28]} 18. Nf3 {[%clk
00:46:10]} {[%emt 00:01:29]} Rfc8 {[%clk 00:29:28]} {[%emt 00:04:28]} 19. b3
{[%clk 00:44:16]} {[%emt 00:02:24]} a5 {[%clk 00:29:41]} {[%emt 00:00:18]} 20.
Nd4 {[%clk 00:41:40]} {[%emt 00:03:05]} a4 {[%clk 00:29:33]} {[%emt 00:00:38]}
21. Kd2 {[%clk 00:42:03]} {[%emt 00:00:06]} Kf8 {[%clk 00:27:58]} {[%emt
00:02:06]} 22. Rhe1 {[%clk 00:38:09]} {[%emt 00:04:24]} Bd7 {[%clk 00:26:42]}
{[%emt 00:01:46]} 23. Bf3 {[%clk 00:34:15]} {[%emt 00:04:23]} Rc7 {[%clk
00:22:45]} {[%emt 00:04:27]} 24. Rac1 {[%clk 00:25:59]} {[%emt 00:08:47]} Rxc1
{[%clk 00:21:27]} {[%emt 00:01:48]} 25. Rxc1 {[%clk 00:26:27]} {[%emt
00:00:02]} axb3 {[%clk 00:21:37]} {[%emt 00:00:20]} 26. axb3 {[%clk 00:26:54]}
{[%emt 00:00:03]} Ra7 {[%clk 00:18:21]} {[%emt 00:03:46]} 27. Ke3 {[%clk
00:24:03]} {[%emt 00:03:21]} Ke8 {[%clk 00:18:35]} {[%emt 00:00:16]} 28. g4
{[%clk 00:18:57]} {[%emt 00:05:37]} Rb7 {[%clk 00:16:54]} {[%emt 00:02:10]} 29.
g5 {[%clk 00:14:29]} {[%emt 00:04:59]} Ke7 {[%clk 00:16:26]} {[%emt 00:00:57]}
30. Be2 {[%clk 00:43:59]} {[%emt 00:01:00]} Kd6 {[%clk 00:43:56]} {[%emt
00:03:00]} 31. Bd3 {[%clk 00:42:33]} {[%emt 00:01:57]} Rb8 {[%clk 00:43:28]}
{[%emt 00:00:57]} 32. h5 {[%clk 00:33:17]} {[%emt 00:09:46]} h6 {[%clk
00:40:58]} {[%emt 00:03:01]} 33. gxh6 {[%clk 00:29:55]} {[%emt 00:03:53]} gxh6
{[%clk 00:41:22]} {[%emt 00:00:06]} 34. Rg1 {[%clk 00:29:58]} {[%emt 00:00:26]}
Re8+ {[%clk 00:36:41]} {[%emt 00:05:11]} 35. Kf4 {[%clk 00:23:28]} {[%emt
00:07:00]} Re5 {[%clk 00:36:21]} {[%emt 00:00:50]} 36. Rg7 {[%clk 00:19:42]}
{[%emt 00:04:16]} Rxh5 {[%clk 00:36:05]} {[%emt 00:00:46]} 37. Rxf7 {[%clk
00:20:09]} {[%emt 00:00:03]} Rh4+ {[%clk 00:32:30]} {[%emt 00:04:05]} 38. Ke3
{[%clk 00:20:38]} {[%emt 00:00:01]} Kc5 {[%clk 00:31:59]} {[%emt 00:01:01]} 39.
Nf3 {[%clk 00:18:31]} {[%emt 00:02:36]} d4+ {[%clk 00:29:24]} {[%emt 00:03:05]}
40. Kd2 {[%clk 00:18:55]} {[%emt 00:00:06]} Rh5 {[%clk 00:24:44]} {[%emt
00:05:10]} 41. Rf4 {[%clk 00:14:12]} {[%emt 00:05:14]} Rd5 {[%clk 00:23:10]}
{[%emt 00:02:03]} 42. Rf6 {[%clk 00:14:37]} {[%emt 00:00:05]} Nc8 {[%clk
00:20:40]} {[%emt 00:03:00]} 43. Rxh6 {[%clk 00:14:29]} {[%emt 00:00:38]} Bg4
{[%clk 00:20:23]} {[%emt 00:00:47]} 44. Be4 {[%clk 00:13:05]} {[%emt 00:01:54]}
Rd6 {[%clk 00:19:31]} {[%emt 00:01:21]} 45. Rh2 {[%clk 00:05:41]} {[%emt
00:07:55]} Bxf3 {[%clk 00:19:16]} {[%emt 00:00:46]} 46. Bxf3 {[%clk 00:06:09]}
{[%emt 00:00:01]} Kb4 {[%clk 00:19:30]} {[%emt 00:00:16]} 47. Bd1 {[%clk
00:06:20]} {[%emt 00:00:20]} Nb6 {[%clk 00:19:41]} {[%emt 00:00:18]} 48. Rh8
{[%clk 00:02:53]} {[%emt 00:03:56]} Rf6 {[%clk 00:19:16]} {[%emt 00:00:54]} 49.
f3 {[%clk 00:03:22]} {[%emt 00:00:02]} Nd5 {[%clk 00:15:36]} {[%emt 00:04:10]}
50. Rd8 {[%clk 00:03:47]} {[%emt 00:00:05]} Kc5 {[%clk 00:15:37]} {[%emt
00:00:28]} 51. Be2 {[%clk 00:03:06]} {[%emt 00:01:12]} Nb4 {[%clk 00:14:43]}
{[%emt 00:01:23]} 52. Rc8+ {[%clk 00:02:33]} {[%emt 00:01:05]} Rc6 {[%clk
00:14:57]} {[%emt 00:00:15]} 53. Rb8 {[%clk 00:01:43]} {[%emt 00:01:20]} Rb6
{[%clk 00:15:20]} {[%emt 00:00:07]} 54. Rc8+ {[%clk 00:00:54]} {[%emt
00:01:19]} Rc6 {[%clk 00:15:46]} {[%emt 00:00:03]} 55. Rb8 {[%clk 00:01:22]}
{[%emt 00:00:03]} Rb6 {[%clk 00:16:14]} {[%emt 00:00:02]} 56. Rxb6 {[%clk
00:01:15]} {[%emt 00:00:37]} Kxb6 {[%clk 00:16:40]} {[%emt 00:00:04]} 57. Bc4
{[%clk 00:01:42]} {[%emt 00:00:03]} Kc5 {[%clk 00:15:22]} {[%emt 00:01:48]} 58.
f4 {[%clk 00:02:06]} {[%emt 00:00:06]} Kd6 {[%clk 00:15:35]} {[%emt 00:00:16]}
59. Ke2 {[%clk 00:02:10]} {[%emt 00:00:27]} Kc5 {[%clk 00:13:42]} {[%emt
00:02:24]} 60. Bg8 {[%clk 00:00:43]} {[%emt 00:01:57]} Nc2 {[%clk 00:12:42]}
{[%emt 00:01:29]} 61. f5 {[%clk 00:00:34]} {[%emt 00:00:40]} Nb4 {[%clk
00:12:34]} {[%emt 00:00:38]} 62. f6 {[%clk 00:00:46]} {[%emt 00:00:19]} Kd6
{[%clk 00:13:00]} {[%emt 00:00:04]} 63. Bc4 {[%clk 00:00:33]} {[%emt 00:00:43]}
Kd7 {[%clk 00:10:23]} {[%emt 00:03:06]} 64. Kf3 {[%clk 00:00:34]} {[%emt
00:00:30]} Kd6 {[%clk 00:10:27]} {[%emt 00:00:26]} 65. Ke4 {[%clk 00:00:43]}
{[%emt 00:00:21]} Nc6 {[%clk 00:09:58]} {[%emt 00:00:58]} 66. f7 {[%clk
00:00:59]} {[%emt 00:00:15]} Ke7 {[%clk 00:10:18]} {[%emt 00:00:10]} 67. Bd5
{[%clk 00:01:12]} {[%emt 00:00:17]} 1-0